bitfinex-derivatives/quotes_SOLF0:USTF0_20260308
["timestamp","ask_amount","ask_price","bid_price","bid_amount"]
[1772961541693,3.85204918,83.21,83.157,11.94747082]
[1772961541894,10.20515658,83.209,83.157,11.94747082]
[1772961542096,10.20515658,83.208,83.157,11.94747082]
[1772961542296,10.20515658,83.207,83.157,11.94747082]
[1772961542499,10.20515658,83.206,83.157,11.94747082]
[1772961542794,10.817,83.204,83.157,11.94747082]
[1772961543397,10.817,83.204,83.161,11.93402342]
[1772961544900,10.817,83.204,83.163,11.85623945]
[1772961548499,10.817,83.204,83.17,3.85204918]
[1772961549501,10.817,83.204,83.163,11.85623945]
[1772961550296,10.818,83.196,83.163,11.85623945]
[1772961551601,3.85204918,83.22,83.163,11.85623945]
[1772961551803,10.20706613,83.219,83.163,11.85623945]
[1772961551998,10.20706613,83.218,83.163,11.85623945]
[1772961552201,10.20706613,83.217,83.163,11.85623945]
[1772961552399,10.818,83.196,83.151,11.79303144]
[1772961553095,10.819,83.188,83.151,11.79303144]
[1772961553303,10.819,83.188,83.139,11.79303144]
[1772961553598,10.20839119,83.187,83.139,11.79303144]
[1772961553803,10.20839119,83.186,83.139,11.79303144]
[1772961553993,10.819,83.188,83.139,11.79303144]
[1772961553994,10.20839119,83.185,83.139,11.79303144]
[1772961554198,10.818,83.196,83.139,11.79303144]
[1772961554395,10.20548574,83.195,83.139,11.79303144]
[1772961554597,3.85270877,83.19,83.139,11.79303144]
[1772961554794,10.20548574,83.189,83.148,11.77671133]
[1772961555105,3.85270877,83.2,83.148,11.77671133]
[1772961555301,10.20438719,83.199,83.148,11.77671133]
[1772961555501,10.20438719,83.198,83.148,11.77671133]
[1772961555698,10.20438719,83.197,83.148,11.77671133]
[1772961555899,10.20438719,83.196,83.151,11.78203935]
[1772961556096,10.20438719,83.195,83.151,11.78203935]
[1772961556300,10.20438719,83.194,83.151,11.78203935]
[1772961556501,10.20438719,83.193,83.151,11.78203935]
[1772961556806,10.818,83.198,83.151,11.78203935]
[1772961557010,10.20485962,83.197,83.151,11.78203935]
[1772961557204,10.20485962,83.196,83.151,11.78203935]
[1772961557502,10.20485962,83.195,83.151,11.78203935]
[1772961557702,10.20485962,83.194,83.151,11.78203935]
[1772961557905,10.20485962,83.193,83.151,11.78203935]
[1772961558105,10.818,83.198,83.151,11.78203935]
[1772961558304,10.20363183,83.197,83.151,11.78203935]
[1772961558504,10.20363183,83.196,83.151,11.78203935]
[1772961558704,10.20363183,83.195,83.151,11.78203935]
[1772961558903,10.20363183,83.194,83.151,11.78203935]
[1772961559103,10.20363183,83.193,83.151,11.78203935]
[1772961559402,10.818,83.198,83.151,11.78203935]
[1772961559602,10.20296962,83.197,83.151,11.78203935]
[1772961559803,10.20296962,83.196,83.151,11.78203935]
[1772961559999,10.20296962,83.195,83.151,11.78203935]
[1772961560201,10.20296962,83.194,83.151,11.78203935]
[1772961560401,10.818,83.198,83.151,11.78203935]
[1772961560703,10.20229361,83.197,83.151,11.78203935]
[1772961560903,10.20229361,83.196,83.151,11.78203935]
[1772961561104,10.818,83.194,83.151,11.78203935]
[1772961564507,10.817,83.203,83.155,11.76292108]
[1772961564804,10.20089695,83.202,83.155,11.76292108]
[1772961565005,10.20089695,83.201,83.155,11.76292108]
[1772961565206,10.20089695,83.2,83.155,11.76292108]
[1772961565407,10.20089695,83.199,83.155,11.76292108]
[1772961565704,10.20089695,83.198,83.155,11.76292108]
[1772961565906,10.20089695,83.197,83.155,11.76292108]
[1772961566207,10.22220583,83.196,83.155,11.76292108]
[1772961566406,10.817,83.203,83.155,11.76292108]
[1772961566602,10.817,83.2,83.155,11.76292108]
[1772961566905,10.22224568,83.199,83.155,11.76292108]
[1772961567104,10.22224568,83.198,83.155,11.76292108]
[1772961567305,10.818,83.194,83.155,11.76292108]
[1772961568006,3.85270877,83.21,83.155,11.76292108]
[1772961568305,10.818,83.195,83.155,11.76292108]
[1772961568504,10.22872222,83.194,83.155,11.76292108]
[1772961568706,3.85270877,83.21,83.155,11.76292108]
[1772961568907,10.22874566,83.209,83.155,11.76292108]
[1772961569109,10.22874566,83.208,83.155,11.76292108]
[1772961569299,10.22874566,83.207,83.155,11.76292108]
[1772961569497,3.85270877,83.21,83.155,11.76292108]
[1772961569498,10.22874566,83.206,83.155,11.76292108]
[1772961569699,10.22874566,83.205,83.155,11.76292108]
[1772961569899,10.817,83.202,83.155,11.76292108]
[1772961570098,10.22874566,83.201,83.155,11.76292108]
[1772961570301,10.22874566,83.2,83.155,11.76292108]
[1772961570500,10.22874566,83.199,83.155,11.76292108]
[1772961570809,10.22874566,83.198,83.155,11.76292108]
[1772961571003,10.22874566,83.197,83.155,11.76292108]
[1772961571205,10.22874566,83.196,83.155,11.76292108]
[1772961571405,10.22874566,83.195,83.155,11.76292108]
[1772961571606,10.22874566,83.194,83.155,11.76292108]
[1772961571810,10.22874566,83.193,83.155,11.76292108]
[1772961572104,10.818,83.199,83.155,11.76292108]
[1772961572311,10.818,83.197,83.155,11.76292108]
[1772961572506,10.22956867,83.196,83.155,11.76292108]
[1772961572705,10.22956867,83.195,83.155,11.76292108]
[1772961572906,10.22956867,83.194,83.155,11.76292108]
[1772961573112,3.85270877,83.2,83.155,11.76292108]
[1772961573113,10.819,83.19,83.155,11.76292108]
[1772961573811,10.22995564,83.189,83.155,11.76292108]
[1772961574015,10.82,83.183,83.155,11.76292108]
[1772961574211,3.85270877,83.2,83.155,11.76292108]
[1772961574411,10.2304608,83.199,83.155,11.76292108]
[1772961574612,10.2304608,83.198,83.155,11.76292108]
[1772961574813,10.2304608,83.197,83.155,11.76292108]
[1772961575113,10.2304608,83.196,83.155,11.76292108]
[1772961575314,10.2304608,83.195,83.155,11.76292108]
[1772961575513,10.2304608,83.194,83.155,11.76292108]
[1772961575714,10.2304608,83.193,83.155,11.76292108]
[1772961576017,10.2304608,83.192,83.155,11.76292108]
[1772961576207,10.2304608,83.191,83.155,11.76292108]
[1772961576412,10.2304608,83.19,83.155,11.76292108]
[1772961576714,10.2304608,83.189,83.155,11.76292108]
[1772961576914,10.2304608,83.188,83.155,11.76292108]
[1772961577114,10.2304608,83.187,83.155,11.76292108]
[1772961577315,10.2304608,83.186,83.155,11.76292108]
[1772961577513,10.2304608,83.185,83.155,11.76292108]
[1772961577816,10.818,83.197,83.155,11.76292108]
[1772961578018,10.23224479,83.196,83.155,11.76292108]
[1772961578210,10.23224479,83.195,83.155,11.76292108]
[1772961578406,10.23224479,83.194,83.155,11.76292108]
[1772961578611,10.23224479,83.193,83.155,11.76292108]
[1772961578816,10.23224479,83.192,83.155,11.76292108]
[1772961579013,10.23224479,83.191,83.155,11.76292108]
[1772961579215,10.23224479,83.19,83.155,11.76292108]
[1772961579414,10.23224479,83.189,83.155,11.76292108]
[1772961579716,10.23224479,83.188,83.155,11.76292108]
[1772961579916,10.23224479,83.187,83.155,11.76292108]
[1772961580216,10.23224479,83.186,83.155,11.76292108]
[1772961580416,10.23224479,83.185,83.155,11.76292108]
[1772961580711,10.23224479,83.184,83.155,11.76292108]
[1772961580912,10.23224479,83.183,83.155,11.76292108]
[1772961581115,10.23495134,83.182,83.155,11.76292108]
[1772961581315,10.818,83.197,83.155,11.76292108]
[1772961581515,10.818,83.194,83.155,11.76292108]
[1772961581717,10.23591222,83.193,83.155,11.76292108]
[1772961581919,10.23591222,83.192,83.155,11.76292108]
[1772961582220,10.23591222,83.191,83.155,11.76292108]
[1772961582516,10.23591222,83.19,83.155,11.76292108]
[1772961582708,10.23591222,83.189,83.155,11.76292108]
[1772961582914,10.23591222,83.188,83.155,11.76292108]
[1772961583114,10.23591222,83.187,83.155,11.76292108]
[1772961583416,10.23591222,83.186,83.155,11.76292108]
[1772961583616,10.23591222,83.185,83.155,11.76292108]
[1772961583812,10.23591222,83.184,83.155,11.76292108]
[1772961584017,10.23591222,83.183,83.155,11.76292108]
[1772961584218,10.819,83.187,83.155,11.76292108]
[1772961584421,10.23709458,83.186,83.155,11.76292108]
[1772961584620,10.23709458,83.185,83.155,11.76292108]
[1772961584815,10.82,83.183,83.141,11.76020027]
[1772961585015,10.23725338,83.182,83.141,11.76020027]
[1772961585322,10.23725338,83.181,83.141,11.76020027]
[1772961585516,10.23725338,83.18,83.141,11.76020027]
[1772961585821,10.821,83.176,83.141,11.76020027]
[1772961586020,10.23725338,83.175,83.141,11.76020027]
[1772961586225,10.821,83.176,83.141,11.76020027]
[1772961586226,10.23725338,83.174,83.141,11.76020027]
[1772961586419,10.821,83.176,83.141,11.76020027]
[1772961586620,10.23491778,83.175,83.141,11.76020027]
[1772961586820,10.821,83.176,83.141,5.7503521]
[1772961586821,10.23491778,83.174,83.141,5.7503521]
[1772961587126,10.23491778,83.173,83.141,5.7503521]
[1772961587323,10.23491778,83.172,83.141,5.7503521]
[1772961587523,10.23491778,83.171,83.141,5.7503521]
[1772961587718,10.23491778,83.17,83.141,5.7503521]
[1772961588022,10.23491778,83.169,83.141,5.7503521]
[1772961588224,10.821,83.176,83.141,5.7503521]
[1772961588524,10.22991075,83.175,83.141,5.7503521]
[1772961588823,10.22991075,83.174,83.141,5.7503521]
[1772961589018,10.22991075,83.173,83.141,5.7503521]
[1772961589223,10.22991075,83.172,83.141,5.7503521]
[1772961589427,10.821,83.176,83.141,5.7503521]
[1772961589628,10.22842715,83.175,83.141,5.7503521]
[1772961589824,14.86976433,83.203,83.103,21.66]
[1772961589825,11.08098019,83.202,83.151,8.76435565]
[1772961590028,10.22757414,83.201,83.161,8.76435565]
[1772961590328,10.818,83.198,83.161,8.76435565]
[1772961590530,10.22757414,83.197,83.161,8.76435565]
[1772961590720,10.22757414,83.196,83.161,8.76435565]
[1772961590921,3.85270877,83.19,83.145,8.76435565]
[1772961591120,10.22757414,83.189,83.145,8.76435565]
[1772961591327,3.85270877,83.18,83.145,8.76435565]
[1772961591527,10.22757414,83.179,83.145,8.76435565]
[1772961591721,10.22757414,83.178,83.145,8.76435565]
[1772961591925,21.04757414,83.177,83.145,8.76435565]
[1772961592132,10.22757414,83.176,83.145,8.76435565]
[1772961592333,10.821,83.174,83.145,8.76435565]
[1772961592521,10.22757414,83.173,83.131,8.75084186]
[1772961592721,10.22757414,83.172,83.131,8.75084186]
[1772961592921,10.821,83.174,83.131,8.75084186]
[1772961593125,10.22903262,83.173,83.131,8.75084186]
[1772961593328,10.22903262,83.172,83.131,8.75084186]
[1772961593533,10.821,83.174,83.131,8.75084186]
[1772961593831,10.821,83.174,83.144,0.07583326]
[1772961594934,10.822,83.166,83.144,0.07583326]
[1772961595438,10.822,83.166,83.12,8.76935623]
[1772961595933,10.823,83.158,83.12,8.76935623]
[1772961597034,3.85270877,83.14,83.102,8.76651925]
[1772961597232,21.639,83.186,83.058,21.672]
[1772961597233,11.23678985,83.174,83.121,8.76651925]
[1772961597530,10.823,83.158,83.121,8.76651925]
[1772961597726,3.85270877,83.17,83.121,8.76651925]
[1772961597925,21.633,83.209,83.11,8.73051059]
[1772961597926,3.85270877,83.16,83.11,8.73051059]
[1772961598129,10.23982682,83.159,83.11,8.73051059]
[1772961598330,3.85270877,83.17,83.111,8.73051059]
[1772961598535,3.85270877,83.19,83.131,8.73051059]
[1772961598730,10.23197075,83.189,83.131,8.73051059]
[1772961598935,3.85270877,83.2,83.144,8.73051059]
[1772961599240,3.85270877,83.2,83.151,8.73051059]
[1772961599838,10.819,83.19,83.151,8.73051059]
[1772961600233,11.23678985,83.212,83.139,8.67551238]
[1772961600439,3.85270877,83.18,83.127,8.67551238]
[1772961600638,3.85270877,83.16,83.105,8.67551238]
[1772961600938,14.86976433,83.195,83.091,8.67551238]
[1772961600939,10.826,83.136,83.091,8.67551238]
[1772961601731,3.85270877,83.17,83.111,8.67551238]
[1772961601937,3.85270877,83.19,83.131,8.65316899]
[1772961602132,3.85270877,83.2,83.141,8.65316899]
[1772961602341,10.818,83.196,83.15,3.85270877]
[1772961602541,14.86976433,83.222,83.06,21.672]
[1772961602542,11.23678985,83.228,83.17,3.85270877]
[1772961602742,10.22193439,83.226,83.171,8.65316899]
[1772961602943,10.22193439,83.225,83.171,8.65316899]
[1772961603139,22.30498231,83.266,83.171,8.65316899]
[1772961603140,3.85270877,83.24,83.18,3.85270877]
[1772961603340,10.21947464,83.226,83.171,8.65316899]
[1772961603535,10.21947464,83.225,83.171,8.65316899]
[1772961603744,3.85270877,83.22,83.171,8.65316899]
[1772961603940,10.816,83.211,83.16,3.85270877]
[1772961604145,10.21947464,83.21,83.16,12.49695605]
[1772961604444,10.21947464,83.209,83.16,12.49695605]
[1772961604643,10.21947464,83.208,83.16,12.49695605]
[1772961604943,204.73596126,83.227,83.147,8.64424728]
[1772961604944,3.85270877,83.2,83.147,8.64424728]
[1772961605143,3.85270877,83.18,83.132,8.64424728]
[1772961605341,3.85270877,83.19,83.132,8.64424728]
[1772961605637,10.82,83.182,83.14,3.85270877]
[1772961605839,10.82,83.182,83.141,8.64424728]
[1772961606546,10.22241727,83.181,83.111,8.47477283]
[1772961606744,10.22241727,83.18,83.111,8.47477283]
[1772961606942,10.22241727,83.179,83.111,8.47477283]
[1772961607240,10.22241727,83.178,83.111,8.47477283]
[1772961607545,10.22241727,83.177,83.111,8.47477283]
[1772961607745,10.822,83.164,83.111,8.47477283]
[1772961607947,10.22241727,83.163,83.111,8.47477283]
[1772961608141,10.822,83.164,83.111,8.47477283]
[1772961608438,10.2219074,83.163,83.111,8.47477283]
[1772961608636,10.822,83.164,83.111,8.47477283]
[1772961608834,10.22177489,83.163,83.111,8.47477283]
[1772961609140,10.822,83.164,83.111,8.47477283]
[1772961610142,10.822,83.162,83.111,8.47477283]
[1772961610841,10.824,83.152,83.111,8.47477283]
[1772961611041,10.22201862,83.151,83.09,10.832]
[1772961611236,10.824,83.149,83.091,8.47473132]
[1772961611544,11.23678985,83.17,83.091,8.47473132]
[1772961611748,10.21784973,83.169,83.091,8.47473132]
[1772961612041,10.823,83.16,83.093,8.48447912]
[1772961612244,10.21784973,83.159,83.093,8.48447912]
[1772961612446,10.21784973,83.158,83.093,8.48447912]
[1772961612643,11.23678985,83.184,83.099,8.48447912]
[1772961612847,10.21339962,83.183,83.099,8.48447912]
[1772961613049,9.63898418,83.2,83.099,8.48447912]
[1772961613050,10.21339962,83.182,83.099,8.48447912]
[1772961613250,10.21339962,83.181,83.099,8.48447912]
[1772961613552,10.21339962,83.18,83.099,8.48447912]
[1772961613755,10.82,83.178,83.111,10.829]
[1772961614051,20.87577403,83.2,83.112,8.48447912]
[1772961614252,10.21372433,83.199,83.112,8.48447912]
[1772961614442,20.87577403,83.2,83.112,8.48447912]
[1772961614443,10.21372433,83.198,83.112,8.48447912]
[1772961614645,10.21372433,83.197,83.112,8.48447912]
[1772961614843,10.821,83.174,83.112,8.48447912]
[1772961615354,10.823,83.159,83.097,8.45317579]
[1772961616451,10.821,83.169,83.097,8.45317579]
[1772961617757,10.82,83.179,83.118,8.44878759]
[1772961618757,10.82,83.179,83.122,8.43725655]
[1772961619559,10.821,83.171,83.122,8.43725655]
[1772961620362,10.821,83.171,83.124,8.43889391]
[1772961620560,10.82,83.181,83.124,8.43889391]
[1772961621459,10.821,83.173,83.124,8.43889391]
[1772961626264,10.821,83.173,83.125,8.42500175]
[1772961628767,10.822,83.168,83.125,8.42500175]
[1772961628971,3.85528656,83.16,83.108,8.40923305]
[1772961629867,3.85528656,83.17,83.111,8.39838262]
[1772961630172,3.85528656,83.18,83.121,8.39838262]
[1772961630367,10.2488381,83.179,83.121,8.39838262]
[1772961630572,10.2488381,83.178,83.121,8.39838262]
[1772961630767,10.2488381,83.177,83.121,8.39838262]
[1772961630970,10.2488381,83.176,83.121,8.39838262]
[1772961631268,10.2488381,83.175,83.121,8.39838262]
[1772961631474,10.2488381,83.174,83.121,8.39838262]
[1772961631768,10.821,83.17,83.121,19.22638262]
[1772961631975,10.821,83.17,83.122,8.39838262]
[1772961633068,10.24967328,83.169,83.122,8.39838262]
[1772961633267,10.821,83.17,83.122,8.39838262]
[1772961633463,10.24967592,83.169,83.122,8.39838262]
[1772961633670,10.24967592,83.168,83.122,8.39838262]
[1772961633865,10.821,83.17,83.122,8.39838262]
[1772961635068,10.822,83.163,83.122,8.39838262]
[1772961636281,10.823,83.154,83.105,8.37638502]
[1772961637870,10.823,83.154,83.106,8.37638502]
[1772961640884,10.825,83.144,83.106,8.37638502]
[1772961645491,21.638,83.188,83.081,462.71740023]
[1772961645492,10.826,83.132,83.083,8.40257298]
[1772961646086,10.827,83.125,83.083,8.40257298]
[1772961646887,10.827,83.125,83.096,0.07602072]
[1772961649484,10.25822568,83.159,83.096,8.53229556]
[1772961649684,9.63781616,83.17,83.096,8.53229556]
[1772961649996,10.25744648,83.169,83.096,8.45627484]
[1772961650195,10.25744648,83.168,83.096,8.45627484]
[1772961650493,10.25744648,83.167,83.096,8.45627484]
[1772961650693,10.25744648,83.166,83.096,8.45627484]
[1772961650994,10.825,83.142,83.096,8.45627484]
[1772961652992,3.85785135,83.13,83.084,8.46602092]
[1772961653591,3.85785135,83.14,83.084,8.46602092]
[1772961653891,3.85785135,83.13,83.072,8.4620803]
[1772961654098,3.85785135,83.11,83.051,8.4620803]
[1772961655594,10.829,83.114,83.051,8.4620803]
[1772961655795,11.21437283,83.141,83.051,8.4620803]
[1772961656000,3.85785135,83.1,83.051,8.4620803]
[1772961656196,10.831,83.098,83.051,8.4620803]
[1772961658698,10.832,83.088,83.027,8.46976442]
[1772961658902,3.85785135,83.1,83.041,8.46976442]
[1772961659900,3.85785135,83.09,83.041,8.46976442]
[1772961660902,10.832,83.086,83.041,8.46976442]
[1772961661600,10.833,83.078,83.041,8.46976442]
[1772961662298,10.833,83.078,83.03,3.85785135]
[1772961662495,10.835,83.069,83.029,8.45065464]
[1772961662699,3.85785135,83.07,83.016,8.45065464]
[1772961663104,3.85785135,83.06,83.016,8.45065464]
[1772961663903,3.85785135,83.08,83.021,8.45259146]
[1772961664497,3.85785135,83.08,82.973,467.20179875]
[1772961664498,3.85785135,83.1,83.041,8.45259146]
[1772961664704,206.22750938,83.109,83.051,8.45259146]
[1772961665105,206.22750938,83.109,83.06,3.85785135]
[1772961665604,3.85785135,83.1,83.04,3.85785135]
[1772961666504,206.22750938,83.109,83.037,8.45259146]
[1772961666905,10.832,83.09,83.037,8.45259146]
[1772961667302,10.83,83.1,83.039,8.47774696]
[1772961668404,10.832,83.09,83.039,8.47774696]
[1772961668606,206.22750938,83.109,83.039,8.47774696]
[1772961670504,206.22750938,83.109,83.023,8.42424777]
[1772961670505,10.833,83.084,83.023,8.42424777]
[1772961671008,206.22750938,83.109,83.023,8.42424777]
[1772961671809,10.831,83.093,83.035,8.42424777]
[1772961672009,206.22750938,83.109,83.035,8.42424777]
[1772961673814,10.832,83.092,83.04,10.838]
[1772961674112,10.832,83.092,83.041,8.39949739]
[1772961674310,206.22750938,83.109,83.041,8.39949739]
[1772961674515,10.83,83.103,83.044,8.39949739]
[1772961675911,10.83,83.103,83.049,8.39949739]
[1772961676515,206.22750938,83.109,83.049,8.39949739]
[1772961676723,9.65753436,83.1,83.011,8.39745332]
[1772961676919,10.1933778,83.099,83.011,8.39745332]
[1772961677222,10.1933778,83.098,83.011,8.39745332]
[1772961677416,10.1933778,83.097,83.011,8.39745332]
[1772961677723,9.65753436,83.1,83.032,8.39745332]
[1772961678020,10.19542664,83.099,83.032,8.39745332]
[1772961678216,10.19542664,83.098,83.032,8.39745332]
[1772961678518,10.19542664,83.097,83.032,8.39745332]
[1772961678720,9.65753436,83.1,83.032,8.39745332]
[1772961678919,9.65753436,83.1,83.002,459.45966831]
[1772961678920,10.832,83.088,83.036,8.39678595]
[1772961679818,10.833,83.079,83.036,8.39678595]
[1772961683115,9.65753436,83.1,83.002,459.45966831]
[1772961683116,9.65753436,83.1,83.026,8.41180082]
[1772961683316,10.20987938,83.099,83.026,8.41180082]
[1772961683517,10.20987938,83.098,83.026,8.41180082]
[1772961683724,10.20987938,83.097,83.026,8.41180082]
[1772961683927,10.834,83.076,83.026,8.41180082]
[1772961684127,10.21012981,83.095,83.026,8.41180082]
[1772961684322,10.21012981,83.094,83.026,8.41180082]
[1772961684626,9.65753436,83.1,83.026,8.41180082]
[1772961684929,10.21012981,83.099,83.026,8.41180082]
[1772961685122,10.21012981,83.098,83.026,8.41180082]
[1772961685425,10.21012981,83.097,83.026,8.41180082]
[1772961685625,10.21012981,83.096,83.026,8.41180082]
[1772961685827,10.21012981,83.095,83.026,8.41180082]
[1772961686017,10.21012981,83.094,83.026,8.41180082]
[1772961686214,10.21012981,83.093,83.026,8.41180082]
[1772961686413,3.86496044,83.07,83.026,8.41180082]
[1772961686828,3.86496044,83.07,83.028,8.54406777]
[1772961688325,14.69796044,83.08,83.028,8.54406777]
[1772961689528,10.834,83.072,83.028,8.54406777]
[1772961691731,3.86496044,83.08,83.028,8.54406777]
[1772961692630,3.86496044,83.09,83.028,8.54406777]
[1772961692834,3.86496044,83.08,83.028,8.54406777]
[1772961693826,10.835,83.067,83.028,8.54406777]
[1772961694026,10.835,83.067,83.031,8.5785094]
[1772961694823,11.21437283,83.091,83.031,8.5785094]
[1772961695024,3.86496044,83.11,83.051,8.5785094]
[1772961695332,3.86496044,83.1,83.051,8.5785094]
[1772961695532,10.833,83.083,83.038,8.5785094]
[1772961696023,10.833,83.083,83.03,3.86496044]
[1772961696024,10.833,83.083,83.041,8.60610265]
[1772961696424,10.834,83.076,83.041,8.60610265]
[1772961696630,10.21891876,83.075,83.03,12.47106309]
[1772961696830,10.21891876,83.074,83.031,8.60610265]
[1772961697030,3.86496044,83.09,83.031,8.60610265]
[1772961697232,10.22795322,83.089,83.031,8.60610265]
[1772961697426,10.22795322,83.088,83.031,8.60610265]
[1772961697627,10.833,83.082,83.031,8.60610265]
[1772961697831,10.22795322,83.081,83.041,8.60610265]
[1772961698132,15.07606876,83.1,83.041,8.60610265]
[1772961698334,10.23574866,83.099,83.041,8.60610265]
[1772961698633,21.44685698,83.098,83.041,8.60610265]
[1772961698833,10.831,83.092,83.042,8.60840189]
[1772961699032,11.21110832,83.115,83.071,3.75450268]
[1772961699232,12.38748714,83.126,83.081,3.75450268]
[1772961699536,10.827,83.124,83.08,1.60516266]
[1772961699737,1.17637882,83.126,83.09,3.86496044]
[1772961700035,1.17637882,83.126,83.08,3.86496044]
[1772961701329,3.76034285,83.139,83.1,3.86496044]
[1772961701529,3.76034285,83.139,83.091,3.75450268]
[1772961702828,10.826,83.137,83.091,3.75450268]
[1772961703030,3.76034285,83.136,83.091,3.75450268]
[1772961704834,10.826,83.134,83.091,3.75450268]
[1772961705131,3.76034285,83.133,83.091,3.75450268]
[1772961706838,14.58634285,83.131,83.091,3.75450268]
[1772961707540,10.827,83.127,83.091,3.75450268]
[1772961707838,14.58734285,83.127,83.103,0.07591104]
[1772961709238,3.76034285,83.123,83.103,0.07591104]
[1772961709839,10.828,83.12,83.078,3.75450268]
[1772961711541,10.828,83.12,83.08,7.61946312]
[1772961711936,10.828,83.12,83.081,3.75450268]
[1772961713047,3.76034285,83.123,83.081,3.75450268]
[1772961714541,3.76034285,83.123,83.094,0.07599925]
[1772961716554,3.76034285,83.137,83.095,3.75450268]
[1772961717753,10.826,83.135,83.095,3.75450268]
[1772961720053,3.76034285,83.131,83.095,3.75450268]
[1772961723259,3.91744471,83.127,83.095,3.75450268]
[1772961723550,3.91744471,83.127,83.081,3.75670925]
[1772961724959,10.827,83.125,83.081,3.75670925]
[1772961725161,14.51147699,83.125,83.081,3.75670925]
[1772961725563,3.68447699,83.122,83.081,3.75670925]
[1772961726465,14.51247699,83.12,83.081,3.75670925]
[1772961727061,3.68447699,83.119,83.081,3.75670925]
[1772961728063,10.828,83.117,83.092,0.07601595]
[1772961728253,3.68447699,83.116,83.092,0.07601595]
[1772961728452,3.68447699,83.109,83.092,0.07601595]
[1772961728857,3.68447699,83.109,83.07,4.00422281]
[1772961729262,10.83,83.104,83.056,10.836]
[1772961729564,3.68447699,83.103,83.057,4.00422281]
[1772961730764,10.83,83.1,83.057,4.00422281]
[1772961731361,14.51447699,83.1,83.07,0.07584246]
[1772961731554,18.37943743,83.1,83.07,0.07584246]
[1772961732058,14.51447699,83.1,83.07,0.07584246]
[1772961734758,14.69396044,83.11,83.07,0.07584246]
[1772961734959,14.69396044,83.11,83.07,4.08006527]
[1772961735659,18.37843743,83.11,83.07,4.08006527]
[1772961736061,10.83,83.105,83.07,4.08006527]
[1772961736866,3.68447699,83.109,83.07,4.08006527]
[1772961737767,3.86118079,83.11,83.07,4.08006527]
[1772961737768,3.68447699,83.107,83.07,0.07584246]
[1772961738870,3.68447699,83.099,83.07,0.07584246]
[1772961739570,3.68447699,83.099,83.058,4.00422281]
[1772961739766,14.51547699,83.096,83.058,4.00422281]
[1772961740066,3.68447699,83.095,83.041,4.00422281]
[1772961740371,3.86118079,83.08,83.029,4.00422281]
[1772961740673,7.54565778,83.08,83.029,4.00422281]
[1772961740868,3.68447699,83.079,83.029,4.00422281]
[1772961741671,10.834,83.071,83.029,4.00422281]
[1772961742268,3.68447699,83.07,83.029,4.00422281]
[1772961742468,10.835,83.066,83.029,4.00422281]
[1772961743270,10.834,83.076,83.029,4.00422281]
[1772961743468,3.68447699,83.075,83.029,4.00422281]
[1772961743664,10.834,83.074,83.039,0.07592221]
[1772961743972,3.68447699,83.075,83.039,4.08014502]
[1772961745074,3.68447699,83.088,83.039,4.08014502]
[1772961745572,3.68447699,83.088,83.039,4.00422281]
[1772961745771,14.96750713,83.127,82.982,12.03]
[1772961745772,3.86118079,83.11,83.051,4.00422281]
[1772961745973,3.68447699,83.112,83.014,21.684]
[1772961745974,3.68447699,83.112,83.061,4.00422281]
[1772961746876,3.68447699,83.112,83.062,4.00422281]
[1772961748077,3.86118079,83.11,83.062,4.00422281]
[1772961748674,3.68447699,83.102,83.062,4.00422281]
[1772961749075,3.86118079,83.1,83.051,4.00422281]
[1772961749278,3.86118079,83.11,83.051,4.00422281]
[1772961749480,3.86118079,83.11,82.991,21.69]
[1772961749481,7.54565778,83.11,83.061,4.00422281]
[1772961749676,3.68447699,83.109,83.061,4.00422281]
[1772961750779,3.68447699,83.108,83.061,4.00422281]
[1772961752683,3.6900354,83.125,83.071,3.87895026]
[1772961752981,3.6900354,83.119,83.071,3.87895026]
[1772961753383,3.6900354,83.117,83.071,3.87895026]
[1772961753584,3.6900354,83.109,83.06,7.74013105]
[1772961753878,3.6900354,83.109,83.06,3.87895026]
[1772961754484,3.6900354,83.098,83.06,3.87895026]
[1772961754683,3.6900354,83.098,83.051,10.837]
[1772961754881,3.6900354,83.098,83.046,3.87895026]
[1772961755987,3.6900354,83.096,83.046,3.87895026]
[1772961757780,3.6900354,83.096,83.051,3.87895026]
[1772961758991,14.5210354,83.096,83.051,3.87895026]
[1772961759189,3.6900354,83.095,83.051,3.87895026]
[1772961760799,10.831,83.096,83.051,3.87895026]
[1772961761793,10.831,83.096,83.053,3.87895026]
[1772961762692,10.831,83.096,83.055,3.87895026]
[1772961766194,10.83,83.104,83.055,3.87895026]
[1772961766389,3.6900354,83.103,83.055,3.87895026]
[1772961766585,3.6900354,83.099,83.055,3.87895026]
[1772961767885,3.6900354,83.094,83.055,3.87895026]
[1772961768294,3.6900354,83.092,83.055,3.87895026]